{"text_format":"1","workbook":"xlsx","n_sheets":2,"sheets":["Pasiūlymas","Subtiekėjai"],"not_rendered":{"charts":0,"images":0,"macros":1,"external_links":0,"defined_names":0,"comments":0,"pivot_tables":0},"unopened":[],"bounds":{"document_bytes":16777216,"sheet_cells":100000,"rows_first":2000,"rows_last":500,"rows_between":2000,"halvings":0,"cell_chars":16384,"cell_head_chars":4096},"cells_cut":0,"cells_raw":0,"read":"whole","date_system":"1900"}

{"sheet":"Pasiūlymas","index":0,"n_rows":118,"n_cols":13,"rows_kept":118,"cut":false,"hidden":false,"merged":[[25,0,25,4],[18,0,18,1],[18,2,18,4],[19,0,19,1],[19,2,19,4],[22,0,22,5],[15,0,15,1],[15,2,15,4],[16,0,16,1],[16,2,16,4],[17,0,17,1],[17,2,17,4],[12,0,12,1],[12,2,12,4],[13,0,13,1],[13,2,13,4],[14,0,14,1],[14,2,14,4],[9,0,9,1],[9,2,9,4],[10,0,10,1],[10,2,10,4],[11,0,11,1],[11,2,11,4],[28,1,28,5],[34,1,34,5],[40,1,40,5],[46,1,46,5],[52,1,52,5],[58,1,58,5],[64,1,64,5],[70,1,70,5],[77,1,77,5],[83,1,83,5],[89,1,89,5],[95,1,95,5],[101,1,101,5],[107,1,107,5],[113,1,113,5]]}
["Organizacija, kuriai teikiamas pasiūlymas:",null,""]
[]
[null,"PASIŪLYMAS"]
[null,"Šalčininkų rajono savivaldybės vietinės reikšmės kelių, gatvių su asfaltbetonio danga kapitalinio remonto darbų pirkimas"]
[]
["Data:","2020-04-22"]
["Nr.:",481363]
["Vieta:","Kaunas "]
[]
["Tiekėjo pavadinimas / Ūkio subjektų grupės nariai",null,"AB \"Kauno tiltai\""]
["Tiekėjo kodas (-ai)",null,133729589]
["Tiekėjo adresas (-ai)",null,"Ateities pl. 46, LT-52502, Kaunas"]
["Tiekėjo PVM mokėtojo kodas (-ai)",null,"LT337295811"]
["Tiekėjo / Ūkio subjektų grupės atsakingo partnerio sąskaitos numeris, banko pavadinimas ir banko kodas (-ai)",null,"Luminor Bank AB, b.k.40100, a.s.LT80 4010 0425 0006 0743"]
["Asmens atsakingo už pasiūlymą vardas, pavardė",null,"Rimantas Giedraitis"]
["Asmens atsakingo už pasiūlymą telefono numeris, el. pašto adresas",null,"Tel: 8 615 29874, el.paštas: rimantas.giedraitis@kaunotiltai.lt"]
["Tiekėjo / Ūkio subjektų grupės, laimėjimo atveju, pasirašančio sutartį asmens vardas, pavardė, pareigos",null,"Aldas Rusevičius, Generalinis direktorius"]
["Tiekėjo / Ūkio subjektų grupės, laimėjimo atveju, už sutarties vykdymą atsakingo asmens vardas, pavardė, telefono numeris, elektroninio pašto adresas",null,"Alvydas Petkūnas Tel.: 8 686 04170, el.paštas:\nalvydas.petkunas@kaunotiltai.lt"]
["Tiekėjo / Ūkio subjektų grupės kolegialaus priežiūros organo (Stebėtojų tarybos) ir (ar) kolegialaus valdymo organo (Valdybos) narių sąrašas (jei sudaryta)",null,"Valdybos nariai: Aldas Rusevičius;Kęstutis Pusčius; Pranas Benetis; Raimondas Polianinas, Vitalijus Popovas; Eugenijus Urlikas.Stebėtojų tarybos nariai: Marcin Michal Lewandowski; Miquel Llevat Vallespinosa; Dominik Mikolaj Radziwill; Pawel Sebastian Nogalski; Konrad Adam Trzonkowski; Tomasz Adam Matynia."]
[]
[]
["Tiekėjo patvirtinimai:\t\t\t\t\t"]
["1. Šiuo pasiūlymu pažymime, kad sutinkame su visomis pirkimo sąlygomis, nustatytomis:\n1.1. viešojo pirkimo dokumentuose;\n1.2. kituose pirkimo dokumentuose (jų paaiškinimuose, papildymuose).\n2. Pasiūlymas galioja iki termino, nustatyto pirkimo dokumentuose."]
[]
["Tiekėjo siūloma kaina:"]
["* Tais atvejais, kai pagal galiojančius teisės aktus tiekėjui nereikia mokėti PVM, teikėjas privalo su pasiūlymu pateikti laisvos formos raštą dėl PVM netaikymo pagrindo.\t"]
[]
["Nr.","Pavadinimas","Kiekis","Mato vienetas","Kaina be PVM, Eur","Suma be PVM, Eur",null,null,null,null,"","",""]
["1.","Jašiūnų sen., Jašiūnų mstl., Saulėtoji g. Nr. JA-8040 ir J. Sniadeckio g. Nr. JA-8026 ruožo kapitalinis remontas, inžinerinės paslaugos"]
["1.1.","Jašiūnų sen., Jašiūnų mstl., Saulėtoji g. Nr. JA-8040 ir J. Sniadeckio g. Nr. JA-8026 ruožo kapitalinis remontas, inžinerinės paslaugos",1,"kompl.",null,{"$f":"IF(ISBLANK(E30),\"\", PRODUCT(C30,E30))","v":""},null,null,null,""]
[null,null,null,null,"Suma be PVM",{"$f":"IF(F30=\"\",\"\",SUM(F30:F30))","v":""},{"$f":"IF(F30=\"\",\"Neužpildytos visos objektų kainos\",\"\")","v":"Neužpildytos visos objektų kainos"}]
[null,null,null,null,"PVM suma"]
[null,null,null,null,"Suma su PVM",{"$f":"IF(ISBLANK(F32), \"\", SUM(F31:F32))","v":""},null,null,null,""]
[null,null,null,null,null,null,null,null,null,null,null,""]
["2.","Eišiškių sen., Mateikonių k., Kalnelio g. Nr. EI-6034 kapitalinis remontas, inžinerinės paslaugos",null,null,null,null,null,null,null,null,null,""]
["2.1.","Eišiškių sen., Mateikonių k., Kalnelio g. Nr. EI-6034 kapitalinis remontas, inžinerinės paslaugos",1,"kompl.",null,{"$f":"IF(ISBLANK(E36),\"\", PRODUCT(C36,E36))","v":""},null,null,null,"","",""]
[null,null,null,null,"Suma be PVM",{"$f":"IF(F36=\"\",\"\",SUM(F36:F36))","v":""},{"$f":"IF(F36=\"\",\"Neužpildytos visos objektų kainos\",\"\")","v":"Neužpildytos visos objektų kainos"},null,null,"","",""]
[null,null,null,null,"PVM suma",null,null,null,null,"","",""]
[null,null,null,null,"Suma su PVM",{"$f":"IF(ISBLANK(F38), \"\", SUM(F37:F38))","v":""}]
[]
["3.","Jašiūnų sen., Jašiūnų mstl., šv. Antano g., Nr. JA-8044 ruožo kapitalinis remontas, inžinerinės paslaugos",null,null,null,null,null,null,null,""]
["3.1.","Jašiūnų sen., Jašiūnų mstl., šv. Antano g., Nr. JA-8044 ruožo kapitalinis remontas, inžinerinės paslaugos",1,"kompl.",null,{"$f":"IF(ISBLANK(E42),\"\", PRODUCT(C42,E42))","v":""}]
[null,null,null,null,"Suma be PVM",{"$f":"IF(F42=\"\",\"\",SUM(F42:F42))","v":""},{"$f":"IF(F42=\"\",\"Neužpildytos visos objektų kainos\",\"\")","v":"Neužpildytos visos objektų kainos"},null,null,null,null,""]
[null,null,null,null,"PVM suma",null,null,null,null,"",null,""]
[null,null,null,null,"Suma su PVM",{"$f":"IF(ISBLANK(F44), \"\", SUM(F43:F44))","v":""},null,null,null,null,null,""]
[]
["4.","Gerviškių sen. Kidarų k, Kidarų g. Nr. GE-7029 ir vietinės reikšmės kelio Nr. GE-47 (nuo rajoninio kelio Nr.3903 iki Kidarų g.) kapitalinis remontas, inžinerinės paslaugos",null,null,null,null,null,null,null,"","",""]
["4.1.","Gerviškių sen. Kidarų k, Kidarų g. Nr. GE-7029 ir vietinės reikšmės kelio Nr. GE-47 (nuo rajoninio kelio Nr.3903 iki Kidarų g.) kapitalinis remontas, inžinerinės paslaugos",1,"kompl.",247880,{"$f":"IF(ISBLANK(E48),\"\", PRODUCT(C48,E48))","v":247880},null,null,null,"","",""]
[null,null,null,null,"Suma be PVM",{"$f":"IF(F48=\"\",\"\",SUM(F48:F48))","v":247880},{"$f":"IF(F48=\"\",\"Neužpildytos visos objektų kainos\",\"\")","v":""},null,null,"","",""]
[null,null,null,null,"PVM suma",{"$f":"+ROUND(E48*0.21,2)","v":52054.8}]
[null,null,null,null,"Suma su PVM",{"$f":"IF(ISBLANK(F50), \"\", SUM(F49:F50))","v":299934.8}]
[]
["5.","Eišiškių sen. Emiliškių k., Melioratorių g. Nr. EI-6031 ruožo kapitalinis remontas, inžinerinės paslaugos"]
["5.1.","Eišiškių sen. Emiliškių k., Melioratorių g. Nr. EI-6031 ruožo kapitalinis remontas, inžinerinės paslaugos",1,"kompl.",null,{"$f":"IF(ISBLANK(E54),\"\", PRODUCT(C54,E54))","v":""}]
[null,null,null,null,"Suma be PVM",{"$f":"IF(F54=\"\",\"\",SUM(F54:F54))","v":""},{"$f":"IF(F54=\"\",\"Neužpildytos visos objektų kainos\",\"\")","v":"Neužpildytos visos objektų kainos"}]
[null,null,null,null,"PVM suma"]
[null,null,null,null,"Suma su PVM",{"$f":"IF(ISBLANK(F56), \"\", SUM(F55:F56))","v":""}]
[]
["6.","Dieveniškių sen., Dieveniškių mstl. Naujakurių g. Nr. DI-5005 kapitalinis remontas, inžinerinės paslaugos"]
["6.1.","Dieveniškių sen., Dieveniškių mstl. Naujakurių g. Nr. DI-5005 kapitalinis remontas, inžinerinės paslaugos",1,"kompl.",null,{"$f":"IF(ISBLANK(E60),\"\", PRODUCT(C60,E60))","v":""}]
[null,null,null,null,"Suma be PVM",{"$f":"IF(F60=\"\",\"\",SUM(F60:F60))","v":""},{"$f":"IF(F60=\"\",\"Neužpildytos visos objektų kainos\",\"\")","v":"Neužpildytos visos objektų kainos"}]
[null,null,null,null,"PVM suma"]
[null,null,null,null,"Suma su PVM",{"$f":"IF(ISBLANK(F62), \"\", SUM(F61:F62))","v":""}]
[]
["7.","Baltosios Vokės sen., Rūdninkų k., Linksmoji g. Nr. BV-2023 kapitalinis remontas, inžinerinės paslaugos"]
["7.1.","Baltosios Vokės sen., Rūdninkų k., Linksmoji g. Nr. BV-2023 kapitalinis remontas, inžinerinės paslaugos",1,"kompl.",null,{"$f":"IF(ISBLANK(E66),\"\", PRODUCT(C66,E66))","v":""}]
[null,null,null,null,"Suma be PVM",{"$f":"IF(F66=\"\",\"\",SUM(F66:F66))","v":""},{"$f":"IF(F66=\"\",\"Neužpildytos visos objektų kainos\",\"\")","v":"Neužpildytos visos objektų kainos"}]
[null,null,null,null,"PVM suma"]
[null,null,null,null,"Suma su PVM",{"$f":"IF(ISBLANK(F68), \"\", SUM(F67:F68))","v":""}]
[]
["8.","Turgelių mstl., Ilgosios g. Nr. TU-13028 ruožo ir Gėlių g. Nr. TU-13027 kapitalinis remontas, inžinerinės paslaugos"]
["8.1.","Turgelių mstl., Ilgosios g. Nr. TU-13028 ruožo kapitalinis remontas, inžinerinės paslaugos",1,"kompl.",48893,{"$f":"IF(ISBLANK(E72),\"\", PRODUCT(C72,E72))","v":48893}]
["8.2.","Turgelių mstl., Gėlių g. Nr. TU-13027 kapitalinis remontas, inžinerinės paslaugos",1,"kompl.",79938,{"$f":"IF(ISBLANK(E73),\"\", PRODUCT(C73,E73))","v":79938}]
[null,null,null,null,"Suma be PVM",{"$f":"IF((SUMPRODUCT(--(F72:F73=\"\"))>0), \"\", SUM(F72:F73))","v":128831},{"$f":"IF((SUMPRODUCT(--(F72:F73=\"\"))>0), \"Neužpildytos visų objektų kainos\", \"\")","v":""}]
[null,null,null,null,"PVM suma",{"$f":"+ROUND((E72+E73)*0.21,2)","v":27054.51}]
[null,null,null,null,"Suma su PVM",{"$f":"IF(ISBLANK(F75), \"\", SUM(F74:F75))","v":155885.51}]
[]
["9.","Turgelių sen. Mikniškių k. Merkio g. Nr. TU-13009 ruožo, Liepų g. Nr.TU-13008 bei vietinės reikšmės kelio Nr. TU-30 ruožo kapitalinis remontas, inžinerinės "]
["9.1.","Turgelių sen. Mikniškių k. Merkio g. Nr. TU-13009 ruožo, Liepų g. Nr.TU-13008 bei vietinės reikšmės kelio Nr. TU-30 ruožo kapitalinis remontas, inžinerinės ",1,"kompl.",null,{"$f":"IF(ISBLANK(E79),\"\", PRODUCT(C79,E79))","v":""}]
[null,null,null,null,"Suma be PVM",{"$f":"IF(F79=\"\",\"\",SUM(F79:F79))","v":""},{"$f":"IF(F79=\"\",\"Neužpildytos visos objektų kainos\",\"\")","v":"Neužpildytos visos objektų kainos"}]
[null,null,null,null,"PVM suma"]
[null,null,null,null,"Suma su PVM",{"$f":"IF(ISBLANK(F81), \"\", SUM(F80:F81))","v":""}]
[]
["10.","Šalčininkų sen. Šalčininkėlių k. Mokyklos g. Nr. ŠA-12053 ruožo kapitalinis remontas, inžinerinės paslaugos"]
["10.1.","Šalčininkų sen. Šalčininkėlių k. Mokyklos g. Nr. ŠA-12053 ruožo kapitalinis remontas, inžinerinės paslaugos",1,"kompl.",null,{"$f":"IF(ISBLANK(E85),\"\", PRODUCT(C85,E85))","v":""}]
[null,null,null,null,"Suma be PVM",{"$f":"IF(F85=\"\",\"\",SUM(F85:F85))","v":""},{"$f":"IF(F85=\"\",\"Neužpildytos visos objektų kainos\",\"\")","v":"Neužpildytos visos objektų kainos"}]
[null,null,null,null,"PVM suma"]
[null,null,null,null,"Suma su PVM",{"$f":"IF(ISBLANK(F87), \"\", SUM(F86:F87))","v":""}]
[]
["11.","Šalčininkų sen. Didžiųjų Baušių k. Didžiosios g. Nr. ŠA-12021 ruožo kapitalinis remontas, inžinerinės paslaugos"]
["11.1.","Šalčininkų sen. Didžiųjų Baušių k. Didžiosios g. Nr. ŠA-12021 ruožo kapitalinis remontas, inžinerinės paslaugos",1,"kompl.",null,{"$f":"IF(ISBLANK(E91),\"\", PRODUCT(C91,E91))","v":""}]
[null,null,null,null,"Suma be PVM",{"$f":"IF(F91=\"\",\"\",SUM(F91:F91))","v":""},{"$f":"IF(F91=\"\",\"Neužpildytos visos objektų kainos\",\"\")","v":"Neužpildytos visos objektų kainos"}]
[null,null,null,null,"PVM suma"]
[null,null,null,null,"Suma su PVM",{"$f":"IF(ISBLANK(F93), \"\", SUM(F92:F93))","v":""}]
[]
["12.","Eišiškių sen. Eišiškių m. Bažnyčios g. Nr. EI-6005 ruožo kapitalinis remontas, inžinerinės paslaugos"]
["12.1.","Eišiškių sen. Eišiškių m. Bažnyčios g. Nr. EI-6005 ruožo kapitalinis remontas, inžinerinės paslaugos",1,"kompl.",null,{"$f":"IF(ISBLANK(E97),\"\", PRODUCT(C97,E97))","v":""}]
[null,null,null,null,"Suma be PVM",{"$f":"IF(F97=\"\",\"\",SUM(F97:F97))","v":""},{"$f":"IF(F97=\"\",\"Neužpildytos visos objektų kainos\",\"\")","v":"Neužpildytos visos objektų kainos"}]
[null,null,null,null,"PVM suma"]
[null,null,null,null,"Suma su PVM",{"$f":"IF(ISBLANK(F99), \"\", SUM(F98:F99))","v":""}]
[]
["13.","Gerviškių sen. Pašalčies k. vietinės reikšmės kelio Nr. P-4 ir Pašalčies g. Nr.GE-7032 ruožo kapitalinis remontas, inžinerinės paslaugos"]
["13.1.","Gerviškių sen. Pašalčies k. vietinės reikšmės kelio Nr. P-4 ir Pašalčies g. Nr.GE-7032 ruožo kapitalinis remontas, inžinerinės paslaugos",1,"kompl.",368055,{"$f":"IF(ISBLANK(E103),\"\", PRODUCT(C103,E103))","v":368055}]
[null,null,null,null,"Suma be PVM",{"$f":"IF(F103=\"\",\"\",SUM(F103:F103))","v":368055},{"$f":"IF(F103=\"\",\"Neužpildytos visos objektų kainos\",\"\")","v":""}]
[null,null,null,null,"PVM suma",{"$f":"+ROUND(E103*0.21,2)","v":77291.55}]
[null,null,null,null,"Suma su PVM",{"$f":"IF(ISBLANK(F105), \"\", SUM(F104:F105))","v":445346.55}]
[]
["14.","Šalčininkų m. J. Sniadeckio g. Nr. ŠA-12074 ruožo rekonstrukcija"]
["14.1.","Šalčininkų m. J. Sniadeckio g. Nr. ŠA-12074 ruožo rekonstrukcija",1,"kompl.",null,{"$f":"IF(ISBLANK(E109),\"\", PRODUCT(C109,E109))","v":""}]
[null,null,null,null,"Suma be PVM",{"$f":"IF(F109=\"\",\"\",SUM(F109:F109))","v":""},{"$f":"IF(F109=\"\",\"Neužpildytos visos objektų kainos\",\"\")","v":"Neužpildytos visos objektų kainos"}]
[null,null,null,null,"PVM suma"]
[null,null,null,null,"Suma su PVM",{"$f":"IF(ISBLANK(F111), \"\", SUM(F110:F111))","v":""}]
[]
["15.","Šalčininkų sen. Zavišonių k. P. Vendziagolskio g. Nr. ŠA-12145 ruožo kapitalinis remontas, inžinerinės paslaugos"]
["15.1.","Šalčininkų sen. Zavišonių k. P. Vendziagolskio g. Nr. ŠA-12145 ruožo kapitalinis remontas, inžinerinės paslaugos",1,"kompl.",null,{"$f":"IF(ISBLANK(E115),\"\", PRODUCT(C115,E115))","v":""}]
[null,null,null,null,"Suma be PVM",{"$f":"IF(F115=\"\",\"\",SUM(F115:F115))","v":""},{"$f":"IF(F115=\"\",\"Neužpildytos visos objektų kainos\",\"\")","v":"Neužpildytos visos objektų kainos"}]
[null,null,null,null,"PVM suma"]
[null,null,null,null,"Suma su PVM",{"$f":"IF(ISBLANK(F117), \"\", SUM(F116:F117))","v":""}]

{"sheet":"Subtiekėjai","index":1,"n_rows":100,"n_cols":9,"rows_kept":100,"cut":false,"hidden":false,"merged":[[31,0,31,3],[31,4,31,9],[21,0,21,9],[23,0,23,9],[16,1,16,6],[16,7,16,9],[17,1,17,6],[17,7,17,9],[18,1,18,6],[18,7,18,9],[19,1,19,6],[19,7,19,9],[24,0,24,9],[25,0,25,9],[28,0,28,3],[28,4,28,9],[15,1,15,6],[15,7,15,9],[7,0,7,1],[7,2,7,4],[7,5,7,7],[7,8,7,9],[8,0,8,1],[8,2,8,4],[8,5,8,7],[8,8,8,9],[10,0,10,9],[12,0,12,9],[14,1,14,6],[14,7,14,9],[5,0,5,1],[5,2,5,4],[5,5,5,7],[5,8,5,9],[6,0,6,1],[6,2,6,4],[6,5,6,7],[6,8,6,9],[4,0,4,1],[4,2,4,4],[4,5,4,7],[4,8,4,9],[1,0,1,9],[3,0,3,1],[3,2,3,4],[3,5,3,7],[3,8,3,9]]}
[]
["Sutarties vykdymui numatome pasitelkti šiuos subtiekėjus / subteikėjus / subrangovus:"]
[]
["Pavadinimas",null,"Kodas, adresas",null,null,"Perduodama veikla\t",null,null,"Perduodamos veiklos dalis nuo visos pirkimo sutarties "]
["UAB \"Urban Line\"",null,"Įm.k. 300149157, adresas: Liepkalnio g. 85, LT-02120 Vilnius",null,null,"Projektavimo paslaugos",null,null,"3,44%."]
[]
[]
[]
[]
[]
["Pildyti tuomet, jei pirkimo sutarties vykdymui bus pasitelkti subtiekėjai (subteikėjai). Jeigu tiekėjas nenurodo subtiekėjų (subteikėjų), laikoma, kad vykdant pirkimo sutartį jų nebus pasitelkiama. \n"]
[]
["Kartu su pasiūlymu pateikiami šie dokumentai:"]
[]
["Nr.","Dokumento pavadinimas\n",null,null,null,null,null,"Dokumentas yra konfidencialus? Taip/Ne"]
["1.","Įgaliojimai atstovauti_KONFIDENCIALU",null,null,"Įgaliojimas R. Giedraičiui",null,null,"Taip"]
["2.","Tiekėjo ir subtiekėjo_EBVPD",null,null,"EBVPD",null,null,"Ne"]
["3.","Pasiūlymo galiojimo užtikrinimas",null,null,"EBVPD",null,null,"Ne"]
["4.","Laidavimo draudimo liudijimas",null,null,null,null,null,"Ne"]
["5.","Ketinimų protokolas_KONFIDENCIALU",null,null,null,null,null,"Taip"]
[]
["Pasiūlyme nurodyta Prekės kaina, išskyrus jos sudedamąsias dalis, subtiekėjai, taip pat kita informacija, kuri teisės aktų nustatyta tvarka turi būti skelbiama arba kitokiu būdu viešai prieinama visuomenei, nėra laikoma konfidencialia informacija. Konfidencialią informaciją sudaro, visų pirma, komercinė (gamybinė) paslaptis ir konfidencialieji pasiūlymų aspektai. Informacija, kurią viešai skelbti įpareigoja Lietuvos Respublikos įstatymai, negali būti tiekėjo nurodoma kaip konfidenciali, todėl, tiekėjui nurodžius tokią informaciją kaip konfidencialią, perkančioji organizacija turi teisę ją skelbti. Jei tiekėjas nenurodo konfidencialios informacijos, laikoma, kad konfidencialios informacijos tiekėjo pasiūlyme nėra. Vadovaujantis Informacijos viešinimo Centrinėje viešųjų pirkimų informacinėje sistemoje tvarkos aprašu, patvirtintu Viešųjų pirkimų tarnybos direktoriaus 2017 m. birželio 19 d. įsakymu Nr. 1S-91 „Dėl Informacijos viešinimo Centrinėje viešųjų pirkimų informacinėje sistemoje tvarkos aprašo patvirtinimo“, perkančioji organizacija laimėjusio dalyvio pasiūlymą, išskyrus informaciją, kurią tiekėjas nurodė kaip konfidencialią, paskelbs CVP IS."]
[]
["Pasiūlymo galiojimo užtikrinimui pateikiame (jei taikoma):"]
["Draudimo bendrovės ADB „Gjensidige“ 3000,00 EUR vertės laidavimo draudimo raštą Nr. 3165394"]
["(Nurodyti užtikrinimo būdą, dydį, dokumentus)"]
[]
[]
["Tiekėjo arba jo įgalioto asmens pareigų pavadinimas:",null,null,null,"Pasiūlymų skyriaus vadovas"]
[]
[]
["Pasirašančio asmens vardas ir pavardė:",null,null,null,"Rimantas Giedraitis"]
[]
[]
[]
[]
[]
[]
[]
[]
[]
[]
[]
[]
[]
[]
[]
[]
[]
[]
[]
[]
[]
[]
[]
[]
[]
[]
[]
[]
[]
[]
[]
[]
[]
[]
[]
[]
[]
[]
[]
[]
[]
[]
[]
[]
[]
[]
[]
[]
[]
[]
[]
[]
[]
[]
[]
[]
[]
[]
[]
[]
[]
[]
[]
[]
[]
[]
[]
["3229 2020-04-17 15:06:25"]